fUST/lending_fUST_20250927
["ID","MTS","AMOUNT","RATE_DAILY","PERIOD"]
[387851660,1758930632882,-500.0,0.00032157,2]
[387851661,1758930632891,-500.0,0.00032157,2]
[387851662,1758930632899,-500.0,0.00032157,2]
[387851663,1758930632906,-500.0,0.00032157,2]
[387851664,1758930632913,-500.0,0.00032157,2]
[387851665,1758930632920,-500.0,0.00032157,2]
[387851666,1758930632928,-500.0,0.00032157,2]
[387851667,1758930632934,-500.0,0.00032157,2]
[387851668,1758930632942,-500.0,0.00032157,2]
[387851669,1758930632950,-350.0,0.00032157,2]
[387851670,1758930632958,-830.67,0.00032158,10]
[387851672,1758930632966,-25083.6433081,0.00032158,2]
[387851674,1758930632976,-629.52251835,0.00032158,2]
[387851676,1758930632985,-7173.24907749,0.0003216,2]
[387851679,1758930633004,-46018.2655675,0.0003216,2]
[387851681,1758930633077,-10604.630142,0.0003216,2]
[387851769,1758930638666,-19007.8149424,0.0003216,2]
[387851770,1758930638788,-1248645.20825988,0.0003216,2]
[387851771,1758930638797,-8361.21443604,0.0003216,2]
[387851772,1758930638807,-209.84083945,0.0003216,2]
[387851773,1758930638816,-216038.15107282,0.00032168,2]
[387851774,1758930638825,-10379.03956009,0.0003217,2]
[387851775,1758930638834,-25917.04926629,0.0003217,2]
[387851776,1758930638843,-175.80869955,0.0003217,2]
[387851777,1758930638852,-176.66400536,0.0003217,2]
[387851778,1758930638861,-500.0,0.00032173,5]
[387851779,1758930638870,-500.72887803,0.00032173,5]
[387851780,1758930638880,-500.0,0.00032173,5]
[387851781,1758930638890,-500.0,0.00032173,5]
[387851782,1758930638899,-500.0,0.00032173,5]
[387851783,1758930638908,-500.0,0.00032173,5]
[387851784,1758930638917,-500.0,0.00032173,2]
[387851785,1758930638926,-419.00334178,0.00032173,5]
[387851786,1758930638935,-500.0,0.00032173,5]
[387851787,1758930638945,-151.0,0.000322,12]
[387851788,1758930638954,-200.58178861,0.00032267,10]
[387851789,1758930638963,-160.77352352,0.00032269,10]
[387851790,1758930638972,-6890.98447945,0.0003227,2]
[387851791,1758930638981,-232.0,0.0003227,120]
[387851792,1758930638990,-4302638.10744474,0.0003227,20]
[387851795,1758930640910,-14483.184638,0.0003227,20]
[387851811,1758930645216,-1641600.67889365,0.0003227,20]
[387851812,1758930645225,-155.0,0.0003227,2]
[387851813,1758930645235,-155.0,0.0003227,2]
[387851814,1758930645245,-155.0,0.0003227,2]
[387851815,1758930645255,-155.0,0.0003227,2]
[387851816,1758930645265,-200.0,0.0003227,10]
[387851817,1758930645274,-218.77512779,0.00032273,5]
[387851818,1758930645284,-500.0,0.00032273,5]
[387851819,1758930645293,-500.0,0.00032273,5]
[387851820,1758930645302,-228.54686471,0.00032273,5]
[387851821,1758930645312,-500.0,0.00032273,5]
[387851822,1758930645321,-500.0,0.00032273,5]
[387851823,1758930645331,-500.0,0.00032273,5]
[387851824,1758930645340,-500.0,0.00032273,5]
[387851825,1758930645349,-500.0,0.00032273,5]
[387851826,1758930645359,-500.0,0.00032273,5]
[387851827,1758930645369,-500.0,0.00032273,5]
[387851828,1758930645378,-500.0,0.00032273,5]
[387851829,1758930645387,-500.0,0.00032273,5]
[387851830,1758930645398,-250.0,0.00032273,5]
[387851831,1758930645408,-500.0,0.00032273,5]
[387851832,1758930645418,-500.0,0.00032273,5]
[387851833,1758930645428,-575.25942439,0.00032273,5]
[387851834,1758930645438,-500.0,0.00032273,5]
[387851835,1758930645447,-500.0,0.00032273,5]
[387851836,1758930645457,-500.0,0.00032273,5]
[387851837,1758930645467,-500.0,0.00032273,5]
[387851838,1758930645477,-500.0,0.00032273,5]
[387851839,1758930645487,-500.0,0.00032273,5]
[387851840,1758930645497,-500.0,0.00032273,5]
[387851841,1758930645506,-500.0,0.00032273,5]
[387851842,1758930645515,-500.0,0.00032273,5]
[387851843,1758930645524,-500.0,0.00032273,5]
[387851844,1758930645534,-500.0,0.00032273,5]
[387851845,1758930645543,-500.0,0.00032273,5]
[387851846,1758930645552,-186.2,0.00032273,2]
[387851847,1758930645561,-8361.21443604,0.0003229,2]
[387851848,1758930645571,-209.84083945,0.0003229,2]
[387851849,1758930645580,-151.0,0.000323,12]
[387851850,1758930645590,-151.0,0.000323,10]
[387851851,1758930645600,-151.0,0.000323,13]
[387851852,1758930645609,-151.0,0.000323,20]
[387851853,1758930645618,-151.0,0.000323,12]
[387851854,1758930645628,-151.0,0.000323,10]
[387851855,1758930645637,-151.0,0.000323,18]
[387851856,1758930645646,-151.0,0.000323,12]
[387851857,1758930645656,-151.0,0.000323,12]
[387851858,1758930645668,-151.0,0.000323,15]
[387851859,1758930645678,-151.0,0.000323,13]
[387851860,1758930645687,-169.62692056,0.000323,120]
[387851861,1758930645696,-2341.36179631,0.000323,120]
[387851862,1758930645706,-160.28645206,0.000323,120]
[387851863,1758930645715,-1029.41265175,0.000323,120]
[387851864,1758930645724,-183.28330123,0.000323,120]
[387851865,1758930645734,-8088.87,0.000324,2]
[387851866,1758930645743,-250.0,0.000324,7]
[387851867,1758930645752,-250.0,0.000324,7]
[387851868,1758930645761,-250.0,0.000324,7]
[387851869,1758930645921,-250.0,0.000324,7]
[387851870,1758930645930,-250.0,0.000324,7]
[387851871,1758930645940,-153.3,0.000324,7]
[387851872,1758930645949,-151.0,0.000324,15]
[387851873,1758930645958,-151.0,0.000324,20]
[387851874,1758930645970,-151.0,0.000324,19]
[387851875,1758930645980,-151.0,0.000324,16]
[387851876,1758930645989,-151.0,0.000324,20]
[387851877,1758930645999,-151.0,0.000324,11]
[387851878,1758930646009,-151.0,0.000324,16]
[387851879,1758930646019,-151.0,0.000324,13]
[387851880,1758930646028,-151.0,0.000324,17]
[387851881,1758930646038,-151.0,0.000324,20]
[387851882,1758930646047,-500.0,0.00032432,10]
[387851883,1758930646056,-500.0,0.00032438,10]
[387851884,1758930646065,-186.20021952,0.00032547,2]
[387851885,1758930646074,-2341.36179631,0.000326,120]
[387851886,1758930646083,-1029.41265175,0.000326,120]
[387851887,1758930646092,-500.0,0.00032706,10]
[387851888,1758930646101,-500.0,0.00032712,10]
[387851889,1758930646111,-1000.0,0.00032721,5]
[387851890,1758930646120,-1000.0,0.00032721,5]
[387851891,1758930646129,-1057.45315853,0.00032721,5]
[387851892,1758930646138,-1000.0,0.00032721,5]
[387851893,1758930646147,-642.66919119,0.00032721,5]
[387851894,1758930646157,-8361.21443604,0.00032811,2]
[387851895,1758930646166,-209.84083945,0.00032811,2]
[387851896,1758930646175,-418.76064367,0.00032821,5]
[387851897,1758930646185,-500.0,0.00032821,5]
[387851898,1758930646195,-1000.0,0.00032821,5]
[387851899,1758930646204,-1000.0,0.00032821,5]
[387851900,1758930646214,-1125.43040793,0.00032821,5]
[387851902,1758930646223,-500.0,0.00032821,5]
[387851903,1758930646232,-1000.0,0.00032821,5]
[387851904,1758930646242,-1000.0,0.00032821,5]
[387851905,1758930646251,-500.0,0.00032821,5]
[387851906,1758930646259,-1000.0,0.00032821,5]
[387851907,1758930646269,-1022.6342153,0.00032821,5]
[387851908,1758930646278,-1000.0,0.00032821,5]
[387851909,1758930646290,-984.33723848,0.00032821,5]
[387851910,1758930646300,-1000.0,0.00032821,5]
[387851911,1758930646309,-1000.0,0.00032821,5]
[387851912,1758930646319,-500.83686526,0.00032821,5]
[387851913,1758930646328,-1000.0,0.00032821,5]
[387851914,1758930646337,-1000.0,0.00032821,5]
[387851915,1758930646346,-500.0,0.00032821,5]
[387851916,1758930646356,-1000.74400145,0.00032821,5]
[387851917,1758930646365,-150.0,0.00032876,2]
[387851918,1758930646374,-300.0,0.00032876,2]
[387851919,1758930646383,-450.0,0.00032876,2]
[387851920,1758930646393,-600.0,0.00032876,2]
[387851921,1758930646402,-159.26782013,0.00032876,2]
[387851922,1758930646412,-170.02875655,0.00032876,2]
[387851923,1758930646421,-491.10606129,0.00032876,2]
[387851924,1758930646430,-487.25330023,0.00032876,2]
[387851925,1758930646440,-500.0,0.00032876,2]
[387851926,1758930646449,-500.0,0.00032876,2]
[387851927,1758930646459,-500.0,0.00032876,2]
[387851928,1758930646468,-500.0,0.00032876,2]
[387851929,1758930646477,-500.0,0.00032876,2]
[387851930,1758930646486,-500.0,0.00032876,2]
[387851931,1758930646495,-500.0,0.00032876,2]
[387851932,1758930646504,-500.0,0.00032876,2]
[387851933,1758930646514,-500.0,0.00032876,2]
[387851934,1758930646523,-500.0,0.00032876,2]
[387851935,1758930646532,-500.0,0.00032876,2]
[387851936,1758930646542,-500.0,0.00032876,2]
[387851937,1758930646551,-500.0,0.00032876,2]
[387851938,1758930646560,-500.0,0.00032876,2]
[387851939,1758930646570,-500.0,0.00032876,2]
[387851940,1758930646579,-500.0,0.00032876,2]
[387851941,1758930646588,-500.0,0.00032876,2]
[387851942,1758930646597,-500.0,0.00032876,2]
[387851943,1758930646606,-500.0,0.00032876,2]
[387851944,1758930646617,-500.0,0.00032876,2]
[387851945,1758930646626,-398.38210031,0.00032876,2]
[387851947,1758930646635,-500.0,0.00032876,2]
[387851948,1758930646644,-500.0,0.00032876,2]
[387851949,1758930646653,-500.0,0.00032876,2]
[387851950,1758930646665,-500.0,0.00032876,2]
[387851951,1758930646674,-500.0,0.00032876,2]
[387851952,1758930646683,-500.0,0.00032876,2]
[387851953,1758930646692,-500.0,0.00032876,2]
[387851955,1758930646703,-500.0,0.00032876,2]
[387851956,1758930646712,-500.0,0.00032876,2]
[387851957,1758930646721,-500.0,0.00032876,2]
[387851958,1758930646730,-500.0,0.00032876,2]
[387851959,1758930646741,-500.0,0.00032876,2]
[387851960,1758930646749,-650.0,0.00032876,2]
[387851961,1758930646759,-794.792647,0.00032877,2]
[387851962,1758930646767,-186.15,0.0003288,30]
[387851963,1758930646777,-217.18127914,0.0003288,30]
[387851964,1758930646786,-217.18,0.0003288,30]
[387851965,1758930646794,-172.99,0.0003288,30]
[387851966,1758930646803,-201.82453409,0.0003288,30]
[387851967,1758930646812,-201.82,0.0003288,30]
[387851968,1758930646822,-490.36420006,0.00032921,2]
[387851969,1758930646831,-500.0,0.0003298,10]
[387851970,1758930646839,-500.0,0.00032986,10]
[387851971,1758930646848,-2341.36179631,0.00033,120]
[387851972,1758930646858,-1029.41265175,0.00033,120]
[387851973,1758930646866,-233.71402077,0.0003301,2]
[387851974,1758930646875,-175.80869951,0.00033029,2]
[387851975,1758930646882,-165.66239394,0.000332,117]
[387851976,1758930646888,-500.0,0.00033252,7]
[387851977,1758930646894,-500.0,0.00033254,10]
[387851978,1758930646901,-8361.21443604,0.00033258,2]
[387851979,1758930646907,-209.84083945,0.00033258,2]
[387851980,1758930646914,-500.0,0.0003326,10]
[387851981,1758930646920,-1500.0,0.00033268,5]
[387851982,1758930646927,-1500.0,0.00033268,5]
[387851983,1758930646935,-1500.0,0.00033268,5]
[387851984,1758930646943,-500.0,0.00033278,7]
[387851985,1758930646952,-2341.36179631,0.000333,120]
[387851986,1758930646961,-1029.41265175,0.000333,120]
[387851987,1758930646970,-160.0,0.0003335,2]
[387851988,1758930646978,-1620.25371054,0.00033368,5]
[387851989,1758930646987,-1500.0,0.00033368,5]
[387851990,1758930646996,-1500.0,0.00033368,5]
[387851991,1758930647005,-335.09718123,0.00033368,5]
[387851992,1758930647014,-480.81169604,0.00033368,5]
[387851993,1758930647023,-1000.0,0.00033368,5]
[387851994,1758930647032,-1004.3947377,0.00033368,5]
[387851995,1758930647041,-1155.81244478,0.00033368,5]
[387851996,1758930647050,-1500.0,0.00033368,5]
[387851997,1758930647060,-500.0,0.00033528,10]
[387851998,1758930647069,-500.0,0.00033534,10]
[387851999,1758930647078,-2341.36179631,0.000336,120]
[387852000,1758930647086,-1029.41265175,0.000336,120]
[387852001,1758930647095,-189.862969,0.00033697,60]
[387852002,1758930647104,-153.0,0.00033756,2]
[387852003,1758930647113,-153.0,0.00033756,2]
[387852004,1758930647122,-153.0,0.00033756,2]
[387852005,1758930647131,-153.0,0.00033756,2]
[387852006,1758930647140,-153.0,0.00033756,2]
[387852007,1758930647148,-153.0,0.00033776,2]
[387852008,1758930647157,-153.0,0.00033776,2]
[387852009,1758930647166,-153.0,0.00033776,2]
[387852010,1758930647174,-153.0,0.00033776,2]
[387852011,1758930647183,-153.0,0.00033776,2]
[387852012,1758930647192,-153.0,0.00033776,2]
[387852013,1758930647201,-153.0,0.00033776,2]
[387852014,1758930647210,-153.0,0.00033776,2]
[387852015,1758930647219,-500.0,0.00033802,10]
[387852016,1758930647229,-500.0,0.00033808,10]
[387852017,1758930647239,-2000.0,0.00033816,5]
[387852018,1758930647248,-2000.0,0.00033816,5]
[387852019,1758930647258,-1792.24640992,0.00033816,5]
[387852020,1758930647268,-175.80869951,0.00033888,2]
[387852021,1758930647277,-260.0,0.00033898,2]
[387852022,1758930647287,-1509.6540446,0.00033916,5]
[387852023,1758930647296,-686.54913103,0.00033916,5]
[387852024,1758930647305,-8361.21443604,0.00033966,2]
[387852025,1758930647315,-209.84083945,0.00033966,2]
[387852026,1758930647324,-500.0,0.00033973,5]
[387852027,1758930647333,-500.0,0.00033973,2]
[387852028,1758930647343,-500.0,0.00033973,5]
[387852029,1758930647353,-203.15623399,0.00033973,5]
[387852030,1758930647362,-236.89195217,0.00033973,5]
[387852031,1758930647372,-155.71545962,0.00033973,5]
[387852032,1758930647382,-500.0,0.00033973,5]
[387852033,1758930647392,-500.0,0.00033973,5]
[387852034,1758930647401,-500.0,0.00033973,5]
[387852035,1758930647411,-500.0,0.00033973,5]
[387852036,1758930647420,-500.0,0.00033973,5]
[387852037,1758930647430,-500.0,0.00033973,5]
[387852038,1758930647439,-150.0,0.00033973,5]
[387852039,1758930647449,-8361.21443604,0.00033976,2]
[387852040,1758930647458,-209.84083945,0.00033976,2]
[387852041,1758930647467,-2341.36179631,0.00034,120]
[387852042,1758930647476,-1029.41265175,0.00034,120]
[387852043,1758930647486,-500.0,0.00034076,10]
[387852044,1758930647495,-500.0,0.00034082,10]
[387852045,1758930647504,-200.0,0.0003421,120]
[387852046,1758930647514,-512.7692454,0.00034284,7]
[387852047,1758930647523,-2341.36179631,0.000343,120]
[387852048,1758930647532,-1029.41265175,0.000343,120]
[387852049,1758930647542,-4124.29335408,0.00034325,2]
[387852050,1758930647551,-5613.62150971,0.00034325,2]
[387852051,1758930647560,-7332.07707391,0.00034325,2]
[387852052,1758930647569,-243.0,0.0003433,2]
[387852053,1758930647578,-500.0,0.0003435,10]
[387852054,1758930647587,-500.0,0.00034356,10]
[387852055,1758930647596,-243.0,0.00034357,2]
[387852056,1758930647605,-2500.0,0.00034364,5]
[387852057,1758930647615,-2500.0,0.00034364,5]
[387852058,1758930647624,-5000.0,0.00034383,4]
[387852059,1758930647633,-360.0,0.00034446,2]
[387852060,1758930647642,-500.0,0.00034461,7]
[387852061,1758930647652,-500.0,0.00034473,5]
[387852062,1758930647665,-500.0,0.00034473,5]
[387852063,1758930647673,-500.0,0.00034503,7]
[387852064,1758930647682,-8361.21443604,0.00034511,2]
[387852065,1758930647691,-209.84083945,0.00034511,2]
[387852066,1758930647701,-1006.00901851,0.00034521,5]
[387852067,1758930647710,-1000.0,0.00034521,2]
[387852068,1758930647718,-1000.0,0.00034521,5]
[387852069,1758930647727,-290.77588044,0.00034521,5]
[387852070,1758930647737,-500.0,0.00034521,5]
[387852071,1758930647746,-1000.0,0.00034521,5]
[387852072,1758930647754,-803.90273887,0.00034521,5]
[387852073,1758930647763,-250.0,0.00034521,5]
[387852074,1758930647771,-697.26337393,0.00034521,2]
[387852075,1758930647780,-1255.07407308,0.00034521,2]
[387852076,1758930647789,-2231.24279659,0.00034521,2]
[387852077,1758930647797,-3486.31686967,0.00034521,2]
[387852078,1758930647807,-5020.29629233,0.00034521,2]
[387852079,1758930647815,-150.0,0.00034573,5]
[387852080,1758930647824,-560.0,0.00034581,2]
[387852081,1758930647834,-500.0,0.00034624,10]
[387852082,1758930647842,-500.0,0.0003463,10]
[387852083,1758930647852,-2341.36179631,0.000347,120]
[387852084,1758930647861,-1029.41265175,0.000347,120]
[387852085,1758930647870,-243.0,0.00034736,2]
[387852086,1758930647879,-175.80869951,0.00034747,2]
[387852087,1758930647887,-243.0,0.00034754,2]
[387852088,1758930647896,-500.0,0.00034878,7]
[387852089,1758930647904,-500.0,0.00034891,7]
[387852090,1758930647910,-500.0,0.00034898,10]
[387852091,1758930647918,-500.0,0.00034904,10]
[387852092,1758930647926,-420.09314524,0.00034912,5]
[387852093,1758930647933,-3000.0,0.00034912,5]
[387852094,1758930647941,-243.0,0.00034942,2]
[387852095,1758930647950,-243.0,0.00034971,120]
[387852096,1758930647958,-460.0,0.00034994,2]
[387852097,1758930647967,-10649.98481728,0.00035,2]
[387852098,1758930647976,-256.39886063,0.00035,120]
[387852099,1758930647985,-1819.44188931,0.00035,2]
[387852100,1758930647994,-2341.36179631,0.00035,120]
[387852101,1758930648003,-1029.41265175,0.00035,120]
[387852102,1758930648012,-500.0,0.00035012,5]
[387852103,1758930648021,-1002.97187597,0.00035021,5]
[387852104,1758930648030,-500.0,0.00035021,5]
[387852105,1758930648039,-243.0,0.00035038,2]
[387852106,1758930648048,-500.98096882,0.00035068,2]
[387852107,1758930648057,-1500.0,0.00035068,5]
[387852108,1758930648066,-1500.0,0.00035068,5]
[387852109,1758930648075,-500.0,0.00035068,5]
[387852110,1758930648085,-151.0,0.00035089,30]
[387852111,1758930648094,-300.0,0.00035121,5]
[387852112,1758930648103,-500.0,0.00035172,10]
[387852113,1758930648113,-500.0,0.00035178,10]
[387852114,1758930648122,-8361.21443604,0.00035209,2]
[387852115,1758930648132,-209.84083945,0.00035209,3]
[387852116,1758930648141,-4587.0,0.00035219,2]
[387852117,1758930648151,-978.0,0.00035219,2]
[387852118,1758930648160,-635.0,0.00035219,2]
[387852119,1758930648170,-2160.0,0.00035219,2]
[387852120,1758930648179,-250.0,0.00035219,2]
[387852121,1758930648189,-210.703,0.00035219,2]
[387852122,1758930648198,-243.0,0.00035225,2]
[387852123,1758930648208,-500.0,0.00035446,10]
[387852124,1758930648218,-500.0,0.00035452,10]
[387852125,1758930648227,-3500.0,0.0003546,5]
[387852126,1758930648237,-3629.78030656,0.000355,20]
[387852127,1758930648247,-1000.0,0.0003553,2]
[387852128,1758930648256,-151.09476238,0.0003553,2]
[387852129,1758930648266,-1000.0,0.0003553,2]
[387852130,1758930648275,-1000.0,0.0003553,2]
[387852131,1758930648285,-1000.0,0.0003553,2]
[387852132,1758930648295,-1000.0,0.0003553,2]
[387852133,1758930648304,-1000.0,0.0003553,2]
[387852134,1758930648314,-1000.0,0.0003553,2]
[387852135,1758930648323,-1000.0,0.0003553,2]
[387852136,1758930648332,-1000.0,0.0003553,2]
[387852137,1758930648341,-1000.0,0.0003553,2]
[387852138,1758930648351,-1000.0,0.0003553,2]
[387852139,1758930648360,-1000.0,0.0003553,2]
[387852140,1758930648371,-151.0,0.0003553,2]
[387852141,1758930648380,-1000.0,0.0003553,2]
[387852142,1758930648390,-1000.0,0.0003553,2]
[387852143,1758930648400,-151.0,0.0003553,2]
[387852144,1758930648409,-1000.0,0.0003553,2]
[387852145,1758930648572,-1000.0,0.0003553,2]
[387852146,1758930648582,-151.0,0.0003553,2]
[387852147,1758930648592,-1000.0,0.0003553,2]
[387852148,1758930648601,-151.0,0.0003553,2]
[387852149,1758930648611,-1000.0,0.0003553,2]
[387852150,1758930648620,-163.0,0.0003553,2]
[387852151,1758930648630,-1000.0,0.0003553,2]
[387852152,1758930648639,-151.0,0.0003553,2]
[387852153,1758930648648,-1000.0,0.0003553,2]
[387852154,1758930648660,-1000.0,0.0003553,2]
[387852155,1758930648671,-151.0,0.0003553,2]
[387852156,1758930648680,-1000.0,0.0003553,2]
[387852157,1758930648689,-1000.0,0.0003553,2]
[387852158,1758930648699,-151.0,0.0003553,2]
[387852159,1758930648708,-1000.0,0.0003553,2]
[387852160,1758930648717,-1000.0,0.0003553,2]
[387852161,1758930648726,-151.0,0.0003553,2]
[387852162,1758930648737,-1000.0,0.0003553,2]
[387852163,1758930648746,-1000.0,0.0003553,2]
[387852164,1758930648755,-151.0,0.0003553,2]
[387852165,1758930648764,-1000.0,0.0003553,2]
[387852166,1758930648774,-350.0,0.0003553,2]
[387852167,1758930648783,-1000.0,0.0003553,2]
[387852168,1758930648793,-151.0,0.0003553,2]
[387852169,1758930648802,-1000.0,0.0003553,2]
[387852170,1758930648811,-1000.0,0.0003553,2]
[387852171,1758930648820,-350.0,0.0003553,2]
[387852172,1758930648831,-298.26373367,0.0003553,2]
[387852173,1758930648840,-1000.0,0.0003553,2]
[387852174,1758930648849,-1000.0,0.0003553,2]
[387852175,1758930648858,-350.0,0.0003553,2]
[387852176,1758930648867,-1000.0,0.0003553,2]
[387852177,1758930648877,-350.0,0.0003553,2]
[387852178,1758930648886,-1000.0,0.0003553,2]
[387852179,1758930648895,-1000.0,0.0003553,2]
[387852180,1758930648904,-350.0,0.0003553,2]
[387852181,1758930648912,-1000.0,0.0003553,2]
[387852182,1758930648921,-350.0,0.0003553,2]
[387852183,1758930648930,-350.0,0.0003553,2]
[387852184,1758930648940,-350.0,0.0003553,2]
[387852185,1758930648949,-493.65648943,0.0003553,2]
[387852186,1758930648958,-1000.0,0.0003553,2]
[387852187,1758930648967,-1000.0,0.0003553,2]
[387852188,1758930648976,-1000.0,0.0003553,2]
[387852189,1758930648985,-500.0,0.0003553,2]
[387852190,1758930648995,-500.0,0.0003553,2]
[387852191,1758930649004,-500.0,0.0003553,2]
[387852192,1758930649014,-500.0,0.0003553,2]
[387852193,1758930649023,-500.0,0.0003553,2]
[387852194,1758930649032,-500.0,0.0003553,2]
[387852195,1758930649042,-500.0,0.0003553,2]
[387852196,1758930649051,-500.0,0.0003553,2]
[387852197,1758930649061,-560.0,0.00035542,2]
[387852198,1758930649070,-500.0,0.00035596,30]
[387852199,1758930649079,-175.80869951,0.00035606,2]
[387852200,1758930649089,-999.0,0.00035616,120]
[387852201,1758930649099,-1915.61377862,0.00035616,5]
[387852202,1758930649108,-1987.99569818,0.00035616,5]
[387852203,1758930649117,-500.0,0.00035617,30]
[387852204,1758930649126,-243.0,0.0003562,7]
[387852205,1758930649135,-300.0,0.00035668,5]
[387852206,1758930649144,-8088.87,0.000357,14]
[387852207,1758930649154,-244.0,0.00035713,7]
[387852208,1758930649164,-500.0,0.00035713,30]
[387852209,1758930649173,-500.0,0.0003572,10]
[387852210,1758930649183,-488.67,0.00035726,10]
[387852211,1758930649192,-500.0,0.00035782,30]
[387852212,1758930649202,-243.0,0.00035785,7]
[387852213,1758930649213,-151.0,0.00035891,2]
[387852214,1758930649225,-500.0,0.00035891,2]
[387852215,1758930649238,-500.0,0.00035891,2]
[387852216,1758930649248,-500.0,0.00035994,10]
[387852217,1758930649258,-244.72668916,0.00036,30]
[387852218,1758930649267,-2038.94376837,0.00036,120]
[387852219,1758930649277,-2906.68355311,0.00036008,5]
[387852220,1758930649287,-660.0,0.0003609,2]
[387852221,1758930649296,-500.0,0.00036117,30]
[387852222,1758930649306,-500.0,0.00036165,2]
[387852223,1758930649315,-500.0,0.00036165,2]
[387852224,1758930649324,-203.0754492,0.0003621,2]
[387852225,1758930649334,-264.14407942,0.0003624,2]
[387852226,1758930649343,-8361.21443604,0.00036258,3]
[387852227,1758930649352,-209.84083945,0.00036258,3]
[387852228,1758930649361,-500.0,0.00036268,10]
[387852229,1758930649370,-30648.2672412,0.00036272,2]
[387852230,1758930649379,-243.0,0.00036294,7]
[387852231,1758930649388,-500.0,0.00036391,30]
[387852232,1758930649398,-622.77775158,0.00036436,2]
[387852233,1758930649407,-999.0,0.00036438,120]
[387852234,1758930649416,-500.0,0.00036439,2]
[387852235,1758930649425,-500.0,0.00036439,2]
[387852236,1758930649434,-175.80869951,0.00036464,2]
[387852237,1758930649443,-500.0,0.00036542,10]
[387852238,1758930649452,-4037.9240119,0.00036565,2]
[387852239,1758930649461,-760.0,0.00036638,2]
[387852240,1758930649470,-500.0,0.00036664,30]
[387852241,1758930649479,-243.0,0.00036685,2]
[387852242,1758930649488,-500.0,0.00036713,2]
[387852243,1758930649497,-500.0,0.00036713,2]
[387852244,1758930649506,-243.0,0.00036745,2]
[387852245,1758930649514,-8361.21443604,0.00036783,3]
[387852246,1758930649523,-209.84083945,0.00036783,3]
[387852247,1758930649532,-15608.3431066,0.00036793,2]
[387852248,1758930649541,-500.0,0.00036816,10]
[387852249,1758930649550,-243.0,0.00036875,120]
[387852250,1758930649559,-243.0,0.00036961,2]
[387852251,1758930649568,-500.0,0.00036987,2]
[387852252,1758930649578,-477.2589894,0.00036987,2]
[387852253,1758930649587,-151.0,0.00037059,30]
[387852254,1758930649596,-500.0,0.0003709,10]
[387852255,1758930649605,-244.0,0.00037115,2]
[387852256,1758930649615,-243.0,0.00037167,2]
[387852257,1758930649624,-860.0,0.00037186,2]
[387852258,1758930649632,-783.0,0.00037187,2]
[387852259,1758930649641,-165.66239392,0.0003723,120]
[387852260,1758930649650,-999.0,0.0003726,120]
[387852261,1758930649661,-386.70164806,0.00037261,2]
[387852262,1758930649671,-243.0,0.00037277,7]
[387852263,1758930649680,-243.0,0.00037282,7]
[387852264,1758930649689,-175.80869951,0.00037323,2]
[387852265,1758930649698,-243.0,0.00037331,2]
[387852266,1758930649707,-243.0,0.00037349,2]
[387852267,1758930649716,-500.01,0.00037364,10]
[387852268,1758930649725,-500.0,0.00037414,30]
[387852269,1758930649734,-583.44120406,0.00037415,30]
[387852270,1758930649745,-500.0,0.00037437,30]
[387852271,1758930649754,-243.0,0.00037462,7]
[387852272,1758930649763,-10000.0,0.000375,80]